{"text_format":"1","workbook":"xlsx","n_sheets":1,"sheets":["Presences"],"not_rendered":{"charts":0,"images":0,"macros":0,"external_links":0,"defined_names":1,"comments":0,"pivot_tables":0},"unopened":[],"bounds":{"document_bytes":16777216,"sheet_cells":100000,"rows_first":2000,"rows_last":500,"rows_between":2000,"halvings":0,"cell_chars":16384,"cell_head_chars":4096},"cells_cut":0,"cells_raw":0,"read":"whole","date_system":"1900"}

{"sheet":"Presences","index":0,"n_rows":60,"n_cols":34,"rows_kept":60,"cut":false,"hidden":false,"merged":[[0,1,0,4],[0,15,0,22],[0,25,0,28],[0,7,0,12]]}
[null,"Bonbache.fr",null,null,null,null,null,"Bonbache.fr/Excel",null,null,null,null,null,null,null,"Bonbache.fr/ExcelVBA",null,null,null,null,null,null,null,null,null,"Livres Excel"]
[]
[null,null,{"$f":"C4","v":"2020-06-01"},{"$f":"D4","v":"2020-06-02"},"2020-06-03","2020-06-04","2020-06-05","2020-06-06","2020-06-07","2020-06-08","2020-06-09","2020-06-10","2020-06-11","2020-06-12","2020-06-13","2020-06-14","2020-06-15","2020-06-16","2020-06-17","2020-06-18","2020-06-19",{"$f":"V4","v":"2020-06-20"},{"$f":"W4","v":"2020-06-21"},{"$f":"X4","v":"2020-06-22"},{"$f":"Y4","v":"2020-06-23"},{"$f":"Z4","v":"2020-06-24"},{"$f":"AA4","v":"2020-06-25"},{"$f":"AB4","v":"2020-06-26"},{"$f":"AC4","v":"2020-06-27"},{"$f":"AD4","v":"2020-06-28"},{"$f":"AE4","v":"2020-06-29"},{"$f":"AF4","v":"2020-06-30"},null,"Jour pour disponibilités"]
[null,null,"2020-06-01","2020-06-02","2020-06-03","2020-06-04","2020-06-05","2020-06-06","2020-06-07","2020-06-08","2020-06-09","2020-06-10","2020-06-11","2020-06-12","2020-06-13","2020-06-14","2020-06-15","2020-06-16","2020-06-17","2020-06-18","2020-06-19","2020-06-20","2020-06-21","2020-06-22","2020-06-23","2020-06-24","2020-06-25","2020-06-26","2020-06-27","2020-06-28","2020-06-29","2020-06-30"]
[null,"Hochon",null,"X","X",null,"X",null,null,null,"X","X",null,null,null,null,null,null,"X","X","X",null,null,null,null,"X",null,null,null,null,"X"]
[null,"Audine","X","X",null,null,null,null,null,null,"X","X",null,"X",null,null,null,"X","X","X",null,null,null,null,"X","X","X","X",null,null,null,"X"]
[null,"Rouana",null,null,null,null,null,null,null,null,"X",null,"X","X",null,null,"X",null,null,"X","X",null,null,null,null,null,null,"X",null,null,"X","X"]
[null,"Hamalibou",null,"X",null,null,null,null,null,null,"X","X","X",null,null,null,null,null,"X","X",null,null,null,"X",null,null,"X"]
[null,"Céhef","X",null,"X",null,null,null,null,"X",null,null,"X",null,null,null,null,null,null,null,"X",null,null,null,null,"X","X",null,null,null,"X","X"]
[null,"Galls",null,null,"X",null,"X",null,null,null,"X","X",null,"X",null,null,null,null,"X","X","X",null,null,null,"X",null,null,"X"]
[null,"Houda","X",null,null,"X",null,null,null,null,"X",null,"X","X",null,null,null,"X",null,"X",null,null,null,"X",null,null,null,"X",null,null,"X"]
[null,"Tatouille",null,null,"X","X",null,null,null,null,"X",null,"X",null,null,null,null,"X",null,null,null,null,null,"X","X","X","X",null,null,null,null,"X"]
[null,"Sille","X","X",null,"X","X",null,null,"X","X",null,null,null,null,null,"X","X","X",null,null,null,null,"X","X",null,null,"X",null,null,"X"]
[null,"Bernard",null,"X","X","X","X",null,null,null,null,"X","X","X",null,null,null,"X","X",null,null,null,null,null,null,"X","X",null,null,null,null,"X"]
[null,"Maurice","X","X","X",null,"X",null,null,null,"X",null,null,null,null,null,"X",null,"X","X","X",null,null,"X",null,null,"X"]
[null,"Bonbeur",null,"X","X",null,null,null,null,null,null,null,"X",null,null,null,"X",null,"X",null,null,null,null,null,null,"X","X",null,null,null,"X","X"]
[null,"Hèresse",null,"X",null,"X",null,null,null,"X",null,null,"X","X",null,null,"X",null,null,"X",null,null,null,null,null,"X","X"]
[null,"Noix","X","X","X",null,"X",null,null,"X","X",null,"X",null,null,null,"X","X","X","X",null,null,null,"X",null,"X","X",null,null,null,"X","X"]
[null,"Gature",null,null,null,"X","X",null,null,"X",null,"X",null,"X",null,null,"X",null,"X",null,null,null,null,"X","X",null,null,"X",null,null,"X","X"]
[null,"Hénéré",null,"X","X",null,null,null,null,null,"X",null,null,"X",null,null,null,null,null,null,"X",null,null,"X"]
[null,"Sansasse",null,"X",null,null,null,null,null,"X","X",null,null,null,null,null,null,null,null,null,"X",null,null,"X",null,"X",null,"X",null,null,"X"]
[null,"Thine","X",null,"X",null,null,null,null,null,"X",null,"X","X",null,null,null,null,null,null,"X",null,null,null,"X","X",null,"X",null,null,"X","X"]
[null,"Solo","X",null,null,"X",null,null,null,"X","X","X","X","X",null,null,null,"X",null,"X",null,null,null,"X","X","X",null,null,null,null,"X","X"]
[null,"Jet",null,null,null,"X",null,null,null,null,null,null,"X","X",null,null,null,"X","X","X",null,null,null,"X",null,"X",null,null,null,null,"X","X"]
[null,"Braltar","X","X",null,null,"X",null,null,null,null,null,"X",null,null,null,null,null,null,"X","X",null,null,null,null,null,null,"X",null,null,"X"]
[null,"Douche","X","X",null,"X",null,null,null,"X",null,null,null,"X",null,null,null,null,null,null,null,null,null,"X","X","X",null,null,null,null,"X","X"]
[null,"Sarbaque",null,"X","X",null,null,null,null,"X",null,null,"X",null,null,null,null,"X",null,null,null,null,null,null,null,null,null,"X",null,null,"X","X"]
[null,"Lile",null,"X",null,"X",null,null,null,"X","X","X",null,"X",null,null,null,null,"X","X","X",null,null,"X",null,"X"]
[null,"Doeuf",null,null,null,null,null,null,null,null,null,"X",null,"X",null,null,null,null,null,null,"X",null,null,"X","X","X",null,null,null,null,"X"]
[null,"Niomme","X",null,"X",null,"X",null,null,null,"X","X","X",null,null,null,null,"X","X","X",null,null,null,null,"X",null,null,"X"]
[null,"Honnête","X",null,null,null,"X",null,null,null,null,"X",null,null,null,null,null,null,"X","X",null,null,null,"X"]
[null,"Tomette",null,"X","X","X",null,null,null,null,"X","X",null,"X",null,null,null,"X","X",null,"X",null,null,null,"X","X"]
[null,"Dagin","X","X",null,null,"X",null,null,null,"X","X",null,null,null,null,null,null,"X",null,null,null,null,"X",null,null,null,null,null,null,null,"X"]
[null,"Aubin",null,"X","X",null,"X",null,null,"X",null,"X","X","X",null,null,null,"X","X",null,"X",null,null,null,null,"X","X",null,null,null,"X"]
[null,"Adame","X",null,"X",null,"X",null,null,"X",null,null,null,"X",null,null,null,"X","X",null,"X",null,null,null,"X",null,null,null,null,null,"X"]
[null,"Fonfec",null,"X","X","X",null,null,null,null,"X","X",null,null,null,null,null,null,"X",null,"X",null,null,null,"X","X",null,"X",null,null,"X","X"]
[null,"Aijaune",null,"X",null,"X",null,null,null,null,null,"X",null,null,null,null,null,"X",null,null,"X",null,null,"X","X","X","X","X"]
[null,"Guet",null,null,null,null,"X",null,null,null,null,"X","X",null,null,null,null,null,"X","X","X",null,null,null,"X",null,null,null,null,null,null,"X"]
[null,"Hilant",null,"X",null,"X","X",null,null,null,"X",null,"X",null,null,null,null,null,null,"X",null,null,null,"X",null,"X","X","X",null,null,null,"X"]
[null,"Océrosse",null,null,null,null,null,null,null,null,null,"X",null,null,null,null,null,"X","X",null,null,null,null,"X","X",null,null,"X",null,null,"X","X"]
[null,"Louya","X",null,null,null,null,null,null,null,"X",null,null,"X",null,null,null,null,null,null,null,null,null,null,null,"X",null,null,null,null,null,"X"]
[null,"Ecar","X","X","X","X",null,null,null,null,null,"X","X",null,null,null,null,null,null,"X","X",null,null,"X",null,null,null,null,null,null,"X","X"]
[null,"Songe","X",null,null,"X","X",null,null,"X",null,"X","X",null,null,null,null,"X",null,"X",null,null,null,"X","X",null,null,"X",null,null,null,"X"]
[null,"Feuille",null,null,null,"X",null,null,null,"X",null,"X","X","X",null,null,null,"X","X","X","X",null,null,"X","X","X","X",null,null,null,"X"]
[null,"Fortune","X",null,"X",null,"X",null,null,null,"X","X","X",null,null,null,null,"X","X","X",null,null,null,null,null,null,"X"]
[null,"Kaman","X",null,null,null,null,null,null,null,null,"X",null,null,null,null,null,null,null,"X","X",null,null,"X",null,"X",null,"X",null,null,"X","X"]
[null,"Barre","X","X",null,null,null,null,null,"X",null,"X","X","X",null,null,null,"X","X",null,null,null,null,"X","X",null,"X","X",null,null,"X","X"]
[null,"Wilda","X","X","X",null,"X",null,null,"X","X","X",null,null,null,null,null,"X",null,null,"X",null,null,"X","X","X",null,null,null,null,"X","X"]
[null,"Roma",null,"X",null,"X",null,null,null,null,null,null,"X","X",null,null,null,"X","X","X",null,null,null,null,null,"X",null,"X"]
[null,"Débois",null,"X","X",null,"X",null,null,"X","X","X","X","X",null,null,null,"X","X","X",null,null,null,"X",null,null,null,"X",null,null,"X","X"]
[null,"Gori",null,"X","X","X","X",null,null,null,"X","X","X","X",null,null,null,null,"X",null,"X",null,null,null,null,null,null,null,null,null,"X"]
[null,"Breye","X",null,null,"X",null,null,null,null,null,"X","X",null,null,null,null,"X",null,"X",null,null,null,null,null,"X",null,"X",null,null,"X","X"]
[null,"Durine",null,null,"X",null,null,null,null,null,null,null,null,"X",null,null,null,"X","X","X","X",null,null,null,null,null,"X","X",null,null,"X"]
[null,"Kanar",null,"X",null,"X",null,null,null,"X","X",null,"X","X",null,null,null,null,null,null,null,null,null,"X","X","X","X","X"]
[null,"Mauve","X","X","X",null,null,null,null,null,null,null,null,"X",null,null,null,"X","X",null,"X",null,null,"X","X",null,"X","X",null,null,"X"]
[null,"Onète",null,"X","X",null,null,null,null,null,null,"X",null,null,null,null,null,"X","X","X",null,null,null,"X","X","X","X",null,null,null,null,"X"]
[null,"Orange",null,null,null,null,"X",null,null,"X",null,"X",null,null,null,null,null,null,null,"X",null,null,null,null,"X","X","X",null,null,null,null,"X"]
[null,"Loupe",null,null,null,"X","X",null,null,"X",null,null,"X",null,null,null,null,"X","X",null,"X",null,null,"X",null,"X","X","X",null,null,"X"]
[null,"Vire","X",null,"X","X","X",null,null,"X",null,null,"X","X",null,null,null,"X",null,"X",null,null,null,"X","X",null,null,"X",null,null,null,"X"]
[null,"Lipe","X","X","X","X","X",null,null,"X",null,"X","X",null,null,null,null,null,null,null,null,null,null,null,"X"]